Cogmind - Beta 11.1 @@@ ROGUE MODE // 2022.12.20 @ 19:08:30 Player: L1l7 Result: Destroyed by Y-64 Sentinel with Wave Gun Performance ------------- Evolutions (4) 2000 Regions Visited (10) 2000 Robots Destroyed (16) 80 Value Destroyed (412) 412 Prototype IDs (2) 40 Alien Tech Used (0) 0 Bonus (1074) 1074 TOTAL SCORE: 5606 Bonus ------- Follower Combat Kills 374 Entered Garrisons 200 Used RIF Installer 500 Cogmind --------- Core Integrity 0/850 Matter 242/300 Energy 67/100 System Corruption 1% Temperature Cool (45) Movement Core (50) Location -6/Archives Parts ------- > --- POWER (2) -------- (None) > --- PROPULSION (5) --- (None) > --- UTILITY (5) ------ Improved Signal Interpreter > --- WEAPON (3) ------- (None) > --- INVENTORY (5) ---- Improved Medium Treads Carbon-fiber Leg Improved Titanium Leg Improved Light Armor Plating Heavy Plasma Cannon Peak State ------------ > --- POWER ------------ Light Nuclear Core Light Nuclear Core > --- PROPULSION ------- VTOL Module VTOL Module VTOL Module VTOL Module Xenon Bombardment Thruster > --- UTILITY ---------- Small Storage Unit Weight Redist. System Improved Signal Interpreter Relay Coupler [Swarmer] > --- WEAPON ----------- Precision Assault Rifle Remote Datajack Power Maul > --- INVENTORY -------- VTOL Module VTOL Module Xenon Bombardment Thruster Relay Coupler [Hunter] [Rating: 41] Favorites ----------- Power Light Ion Engine Engine Light Ion Engine Power Core Light Nuclear Core Propulsion VTOL Module Leg Aluminum Leg Flight Unit VTOL Module Utility Small Storage Unit Device Weight Redist. System Storage Small Storage Unit Processor Improved Signal Interpreter Hackware Relay Coupler [Hunter] Weapon Improved Assault Rifle Energy Gun Medium Laser Energy Cannon Heavy Plasma Cannon Ballistic Gun Improved Assault Rifle Special Weapon Remote Datajack Impact Weapon Power Maul Slashing Weapon Mining Claw Build | -11 -10 -9 -8 -7 -7 -7 -6 -6 -6 -6 ------- Run | Scr Mat Mat Mat Fac Gar Fac Fac Ext Cet Arc Slots Evolved 8 | . . 2 2 2 . . 2 . . . Power 1 | . . . . 1 . . . . . . Propulsion 3 | . . 2 . 1 . . . . . . Utility 3 | . . . 2 . . . 1 . . . Weapon 1 | . . . . . . . 1 . . . Parts Attached 58 | 7 2 6 4 7 . 5 2 20 4 1 Power 8 | 1 . 1 . 2 . . . 4 . . Engine 4 | 1 . 1 . 1 . . . 1 . . Core 4 | . . . . 1 . . . 3 . . Reactor . | . . . . . . . . . . . Propulsion 25 | 2 . 4 1 3 . 3 . 11 1 . Treads . | . . . . . . . . . . . Leg 8 | 2 . . . . . . . 6 . . Wheel . | . . . . . . . . . . . Hover . | . . . . . . . . . . . Flight 17 | . . 4 1 3 . 3 . 5 1 . Utility 11 | 2 . . 2 1 . . 1 4 1 . Device 4 | 1 . . 1 1 . . . 1 . . Storage 2 | 1 . . . . . . . 1 . . Processor 2 | . . . 1 . . . . 1 . . Hackware 3 | . . . . . . . 1 1 1 . Protection . | . . . . . . . . . . . Artifact . | . . . . . . . . . . . Weapon 14 | 2 2 1 1 1 . 2 1 1 2 1 Energy Gun 1 | 1 . . . . . . . . . . Energy Cannon 3 | . . . . . . . . . 2 1 Ballistic Gun 6 | 1 2 . 1 1 . 1 . . . . Ballistic Cannon . | . . . . . . . . . . . Launcher . | . . . . . . . . . . . Special Weapon 1 | . . . . . . . 1 . . . Impact Weapon 2 | . . . . . . 1 . 1 . . Slashing Weapon 1 | . . 1 . . . . . . . . Piercing Weapon . | . . . . . . . . . . . Special Melee Weapon . | . . . . . . . . . . . Unidentified Prototypes 2 | . 1 . . . . 1 . . . . Parts Lost 29 | . . . 2 1 . 3 . 19 1 3 Power 4 | . . . . . . 1 . 3 . . Propulsion 15 | . . . 1 1 . 1 . 11 . 1 Utility 8 | . . . 1 . . 1 . 3 1 2 Weapon 2 | . . . . . . . . 2 . . Highest Loss Streak 11 | . . . 2 1 . 2 . 11 1 3 To Critical Strikes . | . . . . . . . . . . . Average Slot Usage (%) 78 | . 100 99 91 92 100 95 75 56 38 35 Engine 6 | . 14 11 9 12 7 6 . 1 1 . Core 2 | . . . . 2 7 7 6 2 . . Leg 7 | . 28 . . . . . . 11 4 . Flight 19 | . . 43 36 31 38 37 26 6 4 6 Device 9 | . 14 11 17 15 15 11 6 5 . . Storage 7 | . 14 11 9 7 7 7 6 4 6 6 Processor 5 | . . . 2 7 7 7 6 7 13 13 Hackware 2 | . . . . . . . 2 5 6 6 Energy Gun 1 | . 11 . . . . . . . . . Ballistic Gun 8 | . 16 19 15 14 15 10 6 1 . . Special Weapon 1 | . . . . . . . 5 1 . . Impact Weapon 2 | . . . . . . 4 6 4 . . Naked Turns . | . . . . . . . . . . . Heaviest Build 24 | 15 17 17 16 20 20 20 20 24 20 15 Greatest Support 55 | 20 20 20 16 26 26 26 22 55 55 6 Greatest Overweight (x) 2 | . . . . . . . . 2 . 2 Average Overweight (x) . | . . . . . . . . . . . Largest Inventory Capacity 8 | 8 8 8 8 8 8 8 8 8 8 8 Average Capacity 7 | 5 8 8 8 8 8 8 8 7 8 7 Most Carried 8 | 5 8 8 8 8 7 8 8 7 6 5 Average Carried 4 | 1 3 3 6 5 7 7 6 3 4 4 Final Capacity 8 | 8 8 8 8 8 8 8 8 8 8 5 Final Carried 8 | 2 8 5 7 7 7 8 6 5 5 5 Class Distribution -------------------- 37% | Mutant 33% | Scavenger-Sprinter 21% | Sprinter 7% | Commander-Mutant Dominant Class ---------------- Mutant | -10/Materials Sprinter | -9/Materials Sprinter | -8/Materials Scavenger-Sprinter | -7/Factory Scavenger-Sprinter | -7/Garrison Scavenger-Sprinter | -7/Factory Scavenger-Sprinter | -6/Factory Mutant | -6/Extension Mutant | -6/Cetus Mutant | -6/Archives Resources | -11 -10 -9 -8 -7 -7 -7 -6 -6 -6 -6 ----------- Run | Scr Mat Mat Mat Fac Gar Fac Fac Ext Cet Arc Matter Collected 799 | 200 . . 37 94 . 279 32 157 . . Remotely . | . . . . . . . . . . . Salvage Created 456 | 27 . . 37 94 . 82 20 196 . . Parts 23 | 5 . . 4 8 . 3 . 3 . . Haulers Intercepted . | . . . . . . . . . . . Recyclers Shooed 2 | . . . . . . 1 . 1 . . Parts Field Recycled . | . . . . . . . . . . . Retrieved Matter . | . . . . . . . . . . . Parts Self-Destructed . | . . . . . . . . . . . Prevented . | . . . . . . . . . . . Kills | -11 -10 -9 -8 -7 -7 -7 -6 -6 -6 -6 ------- Run | Scr Mat Mat Mat Fac Gar Fac Fac Ext Cet Arc Combat Hostiles Destroyed 13 | . . . 3 4 . 1 1 4 . . Melee 1 | . . . . . . . . 1 . . Guns 11 | . . . 3 4 . 1 1 2 . . Classes Destroyed 5 | 1 . . 1 . . 1 . 2 . . Tunneler 1 | 1 . . . . . . . . . . Recycler 1 | . . . . . . 1 . . . . Watcher 1 | . . . . . . . . 1 . . Swarmer 11 | . . . 3 4 . 1 1 2 . . Sentry 2 | . . . . . . . . 2 . . Best Kill Streak 4 | 1 . . 3 4 . 1 1 2 . . Combat Bots Only 4 | . . . 3 4 . 1 1 2 . . Max Kills in Single Turn 1 | 1 . . 1 1 . 1 1 1 . . Gunslinging . | . . . . . . . . . . . Exploded . | . . . . . . . . . . . Melee 1 | . . . . . . . . 1 . . Uniques/NPCs Destroyed . | . . . . . . . . . . . Combat | -11 -10 -9 -8 -7 -7 -7 -6 -6 -6 -6 -------- Run | Scr Mat Mat Mat Fac Gar Fac Fac Ext Cet Arc Damage Taken 2825 | . . 25 234 114 . 163 34 1671 277 307 Core 919 | . . . 40 13 . . 5 513 185 163 Absorbed by Shields 135 | . . . . . . . . 135 . . Core Remaining (%) 98 | 100 100 100 92 . . 98 . . . . Volleys Fired 65 | 2 . 8 11 7 . 11 6 11 5 4 Largest 2 | 2 . 1 1 2 . 2 1 1 1 1 Hottest 90 | 70 . 23 23 46 . 46 28 28 90 90 Shots Fired 76 | 4 . 8 11 14 . 13 6 11 5 4 Gun 58 | 4 . 8 11 14 . 13 1 7 . . Cannon 9 | . . . . . . . . . 5 4 Launcher . | . . . . . . . . . . . Special 9 | . . . . . . . 5 4 . . Kinetic 56 | 2 . 8 11 14 . 13 1 7 . . Thermal 11 | 2 . . . . . . . . 5 4 Explosive . | . . . . . . . . . . . Electromagnetic . | . . . . . . . . . . . Robot Hit Streak 12 | 2 . . 5 12 . 4 2 8 . . Robot Miss Streak 2 | 1 . . 1 1 . 1 2 2 . . Penetration Max . | . . . . . . . . . . . Secondary Targets . | . . . . . . . . . . . Shots Hit Robots 55 | 2 . . 9 11 . 10 3 20 . . Core Hits 20 | 1 . . 3 8 . 3 1 4 . . Critical Kills . | . . . . . . . . . . . Critical Parts Destroyed 3 | . . . . . . 1 . 2 . . Critical Strikes 3 | . . . . . . 1 . 2 . . Smash 3 | . . . . . . 1 . 2 . . Melee Attacks 18 | . . 5 . . . 2 . 11 . . Impact 13 | . . . . . . 2 . 11 . . Slashing 5 | . . 5 . . . . . . . . Piercing . | . . . . . . . . . . . Sneak Attacks 2 | . . . . . . 1 . 1 . . Combat Hostiles . | . . . . . . . . . . . Follow-up Attacks . | . . . . . . . . . . . Damage Inflicted 1211 | 24 . . 142 166 . 236 17 626 . . Guns 573 | 24 . . 142 166 . 106 17 118 . . Cannons . | . . . . . . . . . . . Explosions . | . . . . . . . . . . . Melee 638 | . . . . . . 130 . 508 . . Ramming . | . . . . . . . . . . . Kinetic 560 | 11 . . 142 166 . 106 17 118 . . Thermal 13 | 13 . . . . . . . . . . Explosive . | . . . . . . . . . . . Electromagnetic . | . . . . . . . . . . . Impact 638 | . . . . . . 130 . 508 . . Slashing . | . . . . . . . . . . . Piercing . | . . . . . . . . . . . Highest Corruption 2 | . 2 . . . . . 1 1 1 1 Average Corruption 1 | . 2 . . . . . 1 1 1 1 Corruption Purged . | . . . . . . . . . . . Corruption Blocked . | . . . . . . . . . . . Effects 5 | . . . . . . . . 5 . . Message Errors 2 | . . . . . . . . 2 . . Energy Discharges 1 | . . . . . . . . 1 . . Data Loss (minor) 2 | . . . . . . . . 2 . . Overload Shots . | . . . . . . . . . . . Overflow Damage 227 | . . . . . . 130 . 97 . . Projectiles . | . . . . . . . . . . . Explosions . | . . . . . . . . . . . Melee 227 | . . . . . . 130 . 97 . . Knockbacks 2 | . . . . . . 1 . 1 . . Impact 2 | . . . . . . 1 . 1 . . Kinetic . | . . . . . . . . . . . Secondary . | . . . . . . . . . . . Self-Inflicted Damage . | . . . . . . . . . . . Shots . | . . . . . . . . . . . Rammed . | . . . . . . . . . . . Targets Rammed 1 | . . . . . . . . 1 . . Kicked 1 | . . . . . . . . 1 . . Crushed . | . . . . . . . . . . . Highest Temperature 126 | 18 . 3 . 57 61 126 . . 80 20 Average Temperature 37 | 10 . 1 . 24 27 42 . . 37 15 Received Heat Transfer 653 | . . 15 . . . 9 6 488 45 90 Siege Activations . | . . . . . . . . . . . Robots Corrupted . | . . . . . . . . . . . Combat Hostiles . | . . . . . . . . . . . Parts Fried 4 | . . . . . . 1 . 3 . . Impact Corruptions 7 | . . . . . . 3 . 4 . . Robots Melted . | . . . . . . . . . . . Combat Hostiles . | . . . . . . . . . . . Parts Melted . | . . . . . . . . . . . Heat Transferred 37 | 37 . . . . . . . . . . Parts Sabotaged . | . . . . . . . . . . . Parts Stolen . | . . . . . . . . . . . Parts Stripped . | . . . . . . . . . . . Power Chain Reactions . | . . . . . . . . . . . Missiles Intercepted . | . . . . . . . . . . . Alert | -11 -10 -9 -8 -7 -7 -7 -6 -6 -6 -6 ------- Run | Scr Mat Mat Mat Fac Gar Fac Fac Ext Cet Arc Peak Influence 257 | 5 3 84 163 105 73 121 99 257 39 91 Initial 73 | . 3 . 35 7 73 37 43 48 25 15 Average 51 | 2 3 16 84 56 73 43 51 98 27 38 Maximum Alert Level 1 | . . . . . . . . 1 . . Low Security (%) 97 | 100 100 100 100 100 100 100 100 90 100 100 Level 1 2 | . . . . . . . . 9 . . Level 2 . | . . . . . . . . . . . Level 3 . | . . . . . . . . . . . Level 4 . | . . . . . . . . . . . Level 5 . | . . . . . . . . . . . High Security . | . . . . . . . . . . . Max Security . | . . . . . . . . . . . Squads Dispatched 7 | . 1 1 1 . . 2 1 1 . . Investigation 3 | . 1 . . . . 1 1 . . . Extermination . | . . . . . . . . . . . Reinforcement 4 | . . 1 1 . . 1 . 1 . . Assault . | . . . . . . . . . . . Garrison . | . . . . . . . . . . . Intercept . | . . . . . . . . . . . Searches Triggered . | . . . . . . . . . . . Construction Impeded . | . . . . . . . . . . . Haulers Reinforced . | . . . . . . . . . . . Active Scanning Responses . | . . . . . . . . . . . Cargo Convoy Interrupts . | . . . . . . . . . . . Stealth | -11 -10 -9 -8 -7 -7 -7 -6 -6 -6 -6 --------- Run | Scr Mat Mat Mat Fac Gar Fac Fac Ext Cet Arc Distress Signals 2 | . . 1 . . . . . . 1 . Communications Jammed . | . . . . . . . . . . . Distress Signals . | . . . . . . . . . . . Times Spotted 87 | . . 7 14 5 . 18 5 29 5 4 Peak Tracking Total 10 | . . 6 10 4 . 9 3 9 5 4 Tactical Retreats 7 | . . 2 1 . . 1 . 3 . . Traps | -11 -10 -9 -8 -7 -7 -7 -6 -6 -6 -6 ------- Run | Scr Mat Mat Mat Fac Gar Fac Fac Ext Cet Arc Traps Triggered 4 | . 1 . . . . . . 3 . . Indirectly . | . . . . . . . . . . . Trap Hack Attempts . | . . . . . . . . . . . Triggered . | . . . . . . . . . . . Disarmed . | . . . . . . . . . . . Reprogrammed . | . . . . . . . . . . . Reused . | . . . . . . . . . . . Traps Extracted . | . . . . . . . . . . . Installed . | . . . . . . . . . . . Triggered . | . . . . . . . . . . . Machines | -11 -10 -9 -8 -7 -7 -7 -6 -6 -6 -6 ---------- Run | Scr Mat Mat Mat Fac Gar Fac Fac Ext Cet Arc Machines Disabled 2 | . . . . . . . . . 1 1 Max in Single Turn 1 | . . . . . . . . . 1 1 Garrison Access 1 | . . . . . . 1 . . . . Machines Sabotaged . | . . . . . . . . . . . Garrisons Compromised . | . . . . . . . . . . . Overloaded Fab Kills . | . . . . . . . . . . . Hacking | -11 -10 -9 -8 -7 -7 -7 -6 -6 -6 -6 --------- Run | Scr Mat Mat Mat Fac Gar Fac Fac Ext Cet Arc Machines Accessed 27 | . 1 3 3 3 . 9 2 5 1 . Terminals 23 | . 1 3 3 2 . 7 1 5 1 . Fabricators 1 | . . . . . . 1 . . . . Repair Stations . | . . . . . . . . . . . Recycling Units 1 | . . . . . . . 1 . . . Scanalyzers . | . . . . . . . . . . . Garrison Access 2 | . . . . 1 . 1 . . . . Total Hacks 54 | . 3 6 9 3 . 15 7 10 1 . Successful 26 | . 2 1 5 1 . 8 3 5 1 . Failed 28 | . 1 5 4 2 . 7 4 5 . . Catastrophic 5 | . . 3 . 1 . . . 1 . . Database Lockouts . | . . . . . . . . . . . Manual 9 | . . 1 1 . . 5 2 . . . Terminals 48 | . 3 6 9 2 . 12 5 10 1 . Fabricators 1 | . . . . . . 1 . . . . Repair Stations . | . . . . . . . . . . . Recycling Units 2 | . . . . . . . 2 . . . Scanalyzers . | . . . . . . . . . . . Garrison Access 3 | . . . . 1 . 2 . . . . Terminal Hacks 16 | . 2 1 4 . . 3 . 5 1 . Open Door 6 | . . . . . . . . 5 1 . Level Access Points 2 | . . . 1 . . 1 . . . . Branch Access Points 1 | . 1 . . . . . . . . . Alert Level 1 | . 1 . . . . . . . . . Unreport Threat 5 | . . 1 3 . . 1 . . . . Zone Layout 1 | . . . . . . 1 . . . . Fabricator Hacks 1 | . . . . . . 1 . . . . Network Status 1 | . . . . . . 1 . . . . Repair Station Hacks . | . . . . . . . . . . . Recycling Unit Hacks 2 | . . . . . . . 2 . . . Report Inventory 1 | . . . . . . . 1 . . . Retrieve Components 1 | . . . . . . . 1 . . . Scanalyzer . | . . . . . . . . . . . Garrison Access Hacks 3 | . . . . 1 . 2 . . . . Unlock Access 1 | . . . . 1 . . . . . . Seal Access 1 | . . . . . . 1 . . . . Coupler Status 1 | . . . . . . 1 . . . . Unauthorized Hacks 4 | . . . 1 . . 2 1 . . . Terminals 4 | . . . 1 . . 2 1 . . . Assimilate 3 | . . . 1 . . 1 1 . . . Operators 1 | . . . . . . 1 . . . . Fabricators . | . . . . . . . . . . . Repair Stations . | . . . . . . . . . . . Recycling Units . | . . . . . . . . . . . Scanalyzers . | . . . . . . . . . . . Garrison Access . | . . . . . . . . . . . Data Cores Recovered . | . . . . . . . . . . . Used . | . . . . . . . . . . . Hacking Detections 20 | . 1 3 2 2 . 8 1 3 . . Full Trace Events 5 | . 1 1 1 . . 1 1 . . . Feedback Events 1 | . . . . . . . 1 . . . Corruption 1 | . . . . . . . 1 . . . Feedback Blocked . | . . . . . . . . . . . Robot Schematics Acquired . | . . . . . . . . . . . Robots Built . | . . . . . . . . . . . Authchips . | . . . . . . . . . . . Time . | . . . . . . . . . . . Total Robot Build Rating . | . . . . . . . . . . . Part Schematics Acquired . | . . . . . . . . . . . Parts Built . | . . . . . . . . . . . Authchips . | . . . . . . . . . . . Time . | . . . . . . . . . . . Total Part Build Rating . | . . . . . . . . . . . Parts Repaired . | . . . . . . . . . . . Time . | . . . . . . . . . . . Parts Recycled . | . . . . . . . . . . . Recycled Matter . | . . . . . . . . . . . Retrieved Matter . | . . . . . . . . . . . Retrieved Components 3 | . . . . . . . 3 . . . Parts Scanalyzed . | . . . . . . . . . . . Part Schematics Acquired . | . . . . . . . . . . . Parts Damaged . | . . . . . . . . . . . Bothacking | -11 -10 -9 -8 -7 -7 -7 -6 -6 -6 -6 ------------ Run | Scr Mat Mat Mat Fac Gar Fac Fac Ext Cet Arc Used RIF Installer 1 | . . . . . 1 . . . . . Robots Hacked 4 | . . . . . . . 2 2 . . Non-combat 1 | . . . . . . . 1 . . . Combat 3 | . . . . . . . 1 2 . . Robot Hacks Applied 4 | . . . . . . . 2 2 . . parse_system 1 | . . . . . . . . 1 . . find_chute 1 | . . . . . . . 1 . . . amplify_resonance 2 | . . . . . . . 1 1 . . Relay Couplers Released 2 | . . . . . . 2 . . . . Machine Destruction 2 | . . . . . . 2 . . . . Attached 2 | . . . . . . . 1 1 . . Fabnet Peak Effective % . | . . . . . . . . . . . Robots Rewired 7 | . . . . . . . . 7 . . Allies Hacked . | . . . . . . . . . . . Hacks Repelled . | . . . . . . . . . . . Allies | -11 -10 -9 -8 -7 -7 -7 -6 -6 -6 -6 -------- Run | Scr Mat Mat Mat Fac Gar Fac Fac Ext Cet Arc Total Allies 14 | . . . 1 . . 1 . 12 . . Largest Group 10 | . . . 1 . . 1 . 10 . . Highest-Rated Group 400 | . . . 10 . . 10 . 400 . . Highest-Rated Ally 159 | . . . 10 . . 10 . 159 . . Total Orders . | . . . . . . . . . . . Ally Attacks 56 | . . . . . . . . 56 . . Total Damage 1579 | . . . . . . . . 1579 . . Kills 13 | . . . . . . . . 13 . . Allies Corrupted . | . . . . . . . . . . . Allies Melted . | . . . . . . . . . . . Intel | -11 -10 -9 -8 -7 -7 -7 -6 -6 -6 -6 ------- Run | Scr Mat Mat Mat Fac Gar Fac Fac Ext Cet Arc Robot Analysis Total . | . . . . . . . . . . . Derelict Logs Recovered . | . . . . . . . . . . . Drone Launches . | . . . . . . . . . . . Drone Recoveries . | . . . . . . . . . . . Exploration | -11 -10 -9 -8 -7 -7 -7 -6 -6 -6 -6 ------------- Run | Scr Mat Mat Mat Fac Gar Fac Fac Ext Cet Arc Turns Passed 2277 | 86 317 262 107 114 28 310 276 648 99 30 Spaces Moved 3027 | 72 232 419 200 173 104 777 317 542 158 33 Core 154 | 31 . . . . . . . 120 . 3 Treads . | . . . . . . . . . . . Legs 558 | 41 232 1 . . . . . 276 8 . Wheels . | . . . . . . . . . . . Hover . | . . . . . . . . . . . Flight 2315 | . . 418 200 173 104 777 317 146 150 30 Fastest Speed 23 | 50 120 26 26 25 25 23 26 26 40 40 Average Speed 45 | 89 120 26 26 25 25 24 26 82 44 60 Slowest Speed 200 | 120 120 120 30 32 25 28 26 150 126 200 Overloaded Moves . | . . . . . . . . . . . Propulsion Burnouts . | . . . . . . . . . . . Robots Hopped 46 | . . 10 5 2 . 14 2 9 4 . Cave-ins Triggered . | . . . . . . . . . . . Exploration Rate (%) 34 | 4 36 42 17 4 40 24 8 69 68 65 Regions Visited 10 Branch Regions 3 Pre-discovered Areas . | . . . . . . . . . . . Known Exits Taken 6 | . . . 1 1 . 1 1 1 1 . Unknown Exits Taken 3 | 1 1 1 . . . . . . . . Scrap Searched . | . . . . . . . . . . . Spaces Dug 4 | . . 3 . . . . . . . 1 Terrain Destroyed 4 | . . 3 . . . . . . . 1 Melee 3 | . . 3 . . . . . . . . Projectile 1 | . . . . . . . . . . 1 AOE . | . . . . . . . . . . . Terrain Rammed . | . . . . . . . . . . . Walls Destroyed . | . . . . . . . . . . . Machines Disabled . | . . . . . . . . . . . Actions | -11 -10 -9 -8 -7 -7 -7 -6 -6 -6 -6 --------- Run | Scr Mat Mat Mat Fac Gar Fac Fac Ext Cet Arc Total 3777 | 89 272 544 238 226 104 872 504 708 180 40 Wait 484 | . 25 111 23 30 2 68 182 35 8 . Move 2933 | 71 231 399 190 168 102 750 312 526 151 33 Hop 37 | . . 9 4 2 . 12 2 6 2 . Pick Up 70 | 9 10 2 5 9 . 13 . 19 3 . Fast Attach . | . . . . . . . . . . . Attach 55 | 7 1 6 4 6 . 4 2 20 4 1 Detach 9 | . . 1 1 . . . . 4 2 1 Swap 3 | . 1 . . 1 . 1 . . . . Drop 32 | . 4 3 . 3 . 11 . 5 5 1 Fire 65 | 2 . 8 11 7 . 11 6 11 5 4 Melee 18 | . . 5 . . . 2 . 11 . . Ram . | . . . . . . . . . . . Kick 1 | . . . . . . . . 1 . . Crush . | . . . . . . . . . . . Escape Stasis 20 | . . . . . . . . 20 . . Rewire 50 | . . . . . . . . 50 . . Trap . | . . . . . . . . . . . Miscellaneous . | . . . . . . . . . . . Route ------- -11/Scrapyard -10/Materials (discovered 3 exits: *Mat / Min x2) -9/Materials (discovered 2 exits: *Mat / [*Min]) -8/Materials (discovered 3 exits: *Fac x3) -7/Factory -7/Garrison -7/Factory (discovered 6 exits: *Fac x4 / *Sto / *Low) -6/Factory -6/Extension (discovered 3 exits: *Fac x2 / *Cet) -6/Cetus -6/Archives History --------- Turn | Location | Event 15 | -11/Scrapyard | Discovered new exit (range 15) 87 | -11/Scrapyard | Entered Materials 167 | -10/Materials | Identified exit to Mines 316 | -10/Materials | Build established: Mutant 386 | -10/Materials | Discovered new exit (range 16) 404 | -10/Materials | Entered another Materials area 404 | -9/Materials | Evolved 2 slots: Propulsion x2 582 | -9/Materials | Discovered new exit (range 15) 664 | -9/Materials | Discovered new exit (range 9) 666 | -9/Materials | Entered another Materials area 666 | -8/Materials | Evolved 2 slots: Utility x2 704 | -8/Materials | Build established: Sprinter 761 | -8/Materials | Identified exit to Factory 773 | -8/Materials | Entered Factory 773 | -7/Factory | Evolved 2 slots: Power x1, Propulsion x1 886 | -7/Factory | Identified exit to Garrison 887 | -7/Factory | Entered Garrison 889 | -7/Garrison | Installed Relay Interface Framework 912 | -7/Garrison | Discovered new exit (range 10) 915 | -7/Garrison | Identified exit to Factory 915 | -7/Garrison | Entered Factory 985 | -7/Factory | Identified exit to Factory 1027 | -7/Factory | Discovered new exit (range 7) 1029 | -7/Factory | Identified exit to Storage 1105 | -7/Factory | Discovered new exit (range 5) 1106 | -7/Factory | Identified exit to Lower Caves 1131 | -7/Factory | Build established: Scavenger-Sprinter 1225 | -7/Factory | Entered another Factory area 1225 | -6/Factory | Evolved 2 slots: Utility x1, Weapon x1 1496 | -6/Factory | Discovered new exit (range 15) 1501 | -6/Factory | Identified exit to Extension 1501 | -6/Factory | Entered Extension 1515 | -6/Extension | Rescued a captive Derelict 1589 | -6/Extension | Rescued A7 1662 | -6/Extension | Lost 11 parts (2p7n1u1w) 1792 | -6/Extension | Rescued a captive Derelict 1813 | -6/Extension | Rescued a captive Derelict 1814 | -6/Extension | Rescued a captive Derelict 1843 | -6/Extension | Spotted B-75 Beast 1853 | -6/Extension | Spotted B-75 Beast 1854 | -6/Extension | Extracted ID and sensor layout for unrecognized location from A7's data core 1888 | -6/Extension | Lost 4 parts (1p2n1u) 1888 | -6/Extension | Discovered new exit (range 3) 1889 | -6/Extension | Identified exit to Factory 1935 | -6/Extension | Discovered exit to Factory (range 16) 1935 | -6/Extension | Discovered new exit (range 16) 1947 | -6/Extension | Identified exit to Cetus 2114 | -6/Extension | Core integrity fell below 50% 2149 | -6/Extension | Entered Cetus 2174 | -6/Cetus | Spotted Cetus Guard 2174 | -6/Cetus | Spotted Cetus Guard 2175 | -6/Cetus | Spotted Cetus Guard 2175 | -6/Cetus | Spotted Cetus Guard 2192 | -6/Cetus | Build established: Mutant 2240 | -6/Cetus | Core integrity fell below 20% 2242 | -6/Cetus | Discovered new exit (range 16) 2247 | -6/Cetus | Identified exit to Archives 2248 | -6/Cetus | Entered Archives 2269 | -6/Archives | Unable to access archive contents 2278 | -6/Archives | Destroyed by Y-64 Sentinel with Wave Gun Last Messages --------------- Archive Hub disabled. The unstable cave ceiling collapses. Connecting with Archive Terminal... Slug penetrates Archive Hub. Archive Hub disabled. Penetrated by Slug. Archive Hub disabled. Penetrated by Slug. Terrain Scan Processor destroyed. Archive Terminal disabled. Slug penetrates O-32 Director. Slug penetrates Archive Hub. Archive Hub disabled. Relay Coupler [Hunter] destroyed. Slug penetrates Archive Hub. Xenon Bombardment Thruster destroyed. Dropped Sml. Storage Unit. Archive Terminal disabled. Penetrated by Slug. Critical hit (Burn: +37). Map ----- +----------------------------------------------------+ | | | | | | | ??????????????????????????????????????????? | | ??????????????????????????????????????????? | | ??????????????????????????????????????????? | | ??????????????????????????????????????????? | | ??????????????????????????????????????????? | | ?????????????????????? #????????????????? | | ???????????????????? # #????????????????? | | ??????????????????? + #????????????????? | | ??????????????????? # #????????????????? | | ??????????????"""?" # #????????????????? | | ??????????????""""" # #????????????????? | | ???????????????"""" ?# #????????????????? | | ?????????????###"#"### #????????????????? | | ?????????????#"""""""# #????????????????? | | ?????????????#""" ""# #????????????????? | | ?????????????#""" ""# #????????????????? | | ????????????##"" "# ##???????????????? | | ############# Y #####???????????? | | Y o ""#???????????? | | """"#"""????????? | | o """""""????????? | | ###+#########o ! "#""?????????? | | #"""" @ """"""????????? | | # " """"# ???????? | | """""" o """"#?? ???????? | | """"""""#"V #####???????????? | | """"""""""" ??????????????? | | """"""""#"" "Y o ?????????????? | | """"""""#"""" ?????????????? | | ?############ Y###?????????????? | | ????????????## #"" ""##???????????????? | | ?????????????# #" " """#????????????????? | | ?????????????# #" "V"""#????????????????? | | ?????????????? #""""""??????????????????? | | ?????????????? #????????????????????????? | | ?????????????? #????????????????????????? | | ?????????????? #????????????????????????? | | ?????????????? #????????????????????????? | | ??????????????? ?????????????????????????? | | ??????????????????????????????????????????? | | ??????????????????????????????????????????? | | ??????????????????????????????????????????? | | ??????????????????????????????????????????? | | ??????????????????????????????????????????? | | ??????????????????????????????????????????? | | ??????????????????????????????????????????? | | ??????????????????????????????????????????? | +----------------------------------------------------+ Best States ------------- Heat Dissipation 37 Energy Generation 23 Energy Capacity 290 Matter Stores 300 Matter Capacity 300 Sight Range 16 Robot Scan Range 15 Terrain Scan Range 16 Terrain Scan Density 85 Additional Mass Support 6 Evasion (%) 65 Defensive Hacking 10 Relay Coupler Types 1 Relay Coupler Value 23 Item Schematics ----------------- None Robot Schematics ------------------ None Fabricated ------------ Nothing Alien Tech Used ----------------- None Achievements -------------- None Challenges ------------ None Game ------ Seed TacticalStasisBrace Manual? 0 Play Time 00:49:07 Cumulative 54.5 hours Start 2022.12.20 @ 18:14:41 End 2022.12.20 @ 19:08:30 Sessions 1 Manual Loads 0 Difficulty Rogue Special Mode None Game No. 83 Rogue 83 Adventurer 0 Explorer 0 Win Type - Total 2 Types 1/0/1/0/0/0/0/0/0 Lore% 41 Gallery% 45 Achievement% 38 Wizard Run 0 Options --------- ASCII 0 Keyboard 0 Movement Arrows Keybinds 0 Fullscreen 2 Font 16/SmallcapsGlow Map View 76x50 Tactical HUD 0 Map Filters NONE Filters NONE Steam 1 RUN: 526b83f7-4fa0-45d3-9c66-e41b5ce91ab7